[Event "ETCC Women 2013"]
[Site "Warsaw"]
[Date "2013.11.14"]
[Round "6"]
[White "Majdan-Gajewska, Joanna"]
[Black "Girya, Olga"]
[Result "0-1"]
[ECO "B47"]
[WhiteElo "2420"]
[BlackElo "2447"]
[PlyCount "148"]
[EventDate "2013.??.??"]
[EventCountry "POL"]
[WhiteTeam "Poland"]
[BlackTeam "Russia"]
[WhiteTeamCountry "POL"]
[BlackTeamCountry "RUS"]
[TimeControl "40/5400+30:1800+30"]

1. e4 {[%emt 0:00:00]} c5 {[%emt 0:00:00]} 2. Nf3 {[%emt 0:00:00]} e6 {[%emt 0:
00:00]} 3. d4 {[%emt 0:00:00]} cxd4 {[%emt 0:00:00]} 4. Nxd4 {[%emt 0:00:00]}
Nc6 {[%emt 0:00:00]} 5. Nc3 {[%emt 0:00:01]} Qc7 {[%emt 0:00:06]} 6. g3 {[%emt
0:00:08]} a6 {[%emt 0:00:21]} 7. Bg2 {[%emt 0:00:05]} Nf6 {[%emt 0:00:29]} 8.
O-O {[%emt 0:00:18]} d6 {[%emt 0:00:10]} 9. Re1 {[%emt 0:01:21]} Rb8 {[%emt 0:
00:39]} 10. b3 {[%emt 0:05:08]} Be7 {[%emt 0:08:17]} 11. Nce2 {[%emt 0:04:28]}
Bd7 {[%emt 0:07:42]} 12. c4 {[%emt 0:03:57]} b5 {[%emt 0:01:25]} 13. cxb5 {
[%emt 0:06:15]} Nxd4 {[%emt 0:00:51]} 14. Nxd4 {[%emt 0:00:18]} axb5 {[%emt 0:
00:06]} 15. a4 {[%emt 0:07:36]} bxa4 {[%emt 0:03:13]} 16. bxa4 {[%emt 0:03:06]}
O-O {[%emt 0:00:23]} 17. Be3 {[%emt 0:01:16]} g6 {[%emt 0:05:39]} 18. Nb5 {
[%emt 0:14:20]} Bxb5 {[%emt 0:02:33]} 19. axb5 {[%emt 0:00:21]} Rxb5 {[%emt 0:
05:10]} 20. Ra7 {[%emt 0:00:39]} Rb7 {[%emt 0:02:40]} 21. Rxb7 {[%emt 0:14:39]}
Qxb7 {[%emt 0:00:01]} 22. e5 {[%emt 0:00:07]} Nd5 {[%emt 0:00:08]} 23. Bh6 {
[%emt 0:08:47]} Rb8 {[%emt 0:13:01]} 24. exd6 {[%emt 0:07:16]} Bxd6 {[%emt 0:
00:17]} 25. Qa1 {[%emt 0:02:03]} Bf8 {[%emt 0:04:36]} 26. Bf4 {[%emt 0:00:05]}
Bg7 {[%emt 0:03:42]} 27. Qa2 {[%emt 0:03:05]} Qb4 {[%emt 0:10:07]} 28. Bxb8 {
[%emt 0:01:56]} Qxe1+ {[%emt 0:00:05]} 29. Bf1 {[%emt 0:00:02]} Bd4 {[%emt 0:
00:26]} 30. Bd6 {[%emt 0:02:34]} h5 {[%emt 0:01:42]} 31. Kg2 {[%emt 0:05:44]}
Nc3 {[%emt 0:08:55]} 32. Qa8+ {[%emt 0:02:04]} Kh7 {[%emt 0:00:12]} 33. Qf3 {
[%emt 0:00:05]} Qxf2+ {[%emt 0:02:12]} 34. Qxf2 {[%emt 0:00:21]} Bxf2 {[%emt 0:
00:02]} 35. Be5 {[%emt 0:00:23]} Ne4 {[%emt 0:13:31]} 36. Bd3 {[%emt 0:00:05]}
Nc5 {[%emt 0:00:10]} 37. Bb5 {[%emt 0:00:03]} Be3 {[%emt 0:00:39]} 38. Kf3 {
[%emt 0:03:39]} Bg5 {[%emt 0:00:56]} 39. Bd4 {[%emt 0:02:34]} Nb7 {[%emt 0:03:
40]} 40. Be5 {[%emt 0:00:00]} Be7 {[%emt 0:00:00]} 41. Bc6 {[%emt 0:04:32]} Na5
{[%emt 0:05:03]} 42. Bb5 {[%emt 0:00:15]} Kg8 {[%emt 0:03:24]} 43. Bc3 {[%emt
0:01:06]} Nb7 {[%emt 0:01:06]} 44. Be5 {[%emt 0:01:06]} f6 {[%emt 0:02:06]} 45.
Bc7 {[%emt 0:00:46]} Kf7 {[%emt 0:02:15]} 46. Bc6 {[%emt 0:01:58]} Nc5 {[%emt
0:00:05]} 47. Ke3 {[%emt 0:00:45]} e5 {[%emt 0:03:54]} 48. Bd5+ {[%emt 0:00:47]
} Kf8 {[%emt 0:02:00]} 49. Ba5 {[%emt 0:01:57]} Nd7 {[%emt 0:00:32]} 50. Bc6 {
[%emt 0:01:13]} Bc5+ {[%emt 0:00:36]} 51. Ke4 {[%emt 0:00:57]} Ke7 {[%emt 0:00:
40]} 52. Kd5 {[%emt 0:01:45]} Ba3 {[%emt 0:00:54]} 53. Ba4 {[%emt 0:02:45]} Nf8
{[%emt 0:02:59]} 54. Bc2 {[%emt 0:00:34]} Kf7 {[%emt 0:00:13]} 55. Bd2 {[%emt
0:03:36]} Bb2 {[%emt 0:02:12]} 56. Bb3 {[%emt 0:03:01]} Nh7 {[%emt 0:03:09]}
57. Bh6 {[%emt 0:04:14]} Ke7 {[%emt 0:00:53]} 58. Kc6 {[%emt 0:01:04]} f5 {
[%emt 0:01:58]} 59. Bg8 {[%emt 0:00:45]} Nf6 {[%emt 0:00:07]} 60. Bg5 {[%emt 0:
00:05]} e4 {[%emt 0:04:16]} 61. Bc4 {[%emt 0:00:37]} Bd4 {[%emt 0:01:01]} 62.
Be2 {[%emt 0:03:36]} Bf2 {[%emt 0:03:03]} 63. Bxf6+ {[%emt 0:03:38]} Kxf6 {
[%emt 0:00:02]} 64. Kd5 {[%emt 0:00:04]} Kg5 {[%emt 0:02:40]} 65. Bd1 {[%emt 0:
02:57]} h4 {[%emt 0:02:06]} 66. g4 {[%emt 0:01:06]} h3 {[%emt 0:00:33]} 67. Be2
{[%emt 0:02:33]} Bg1 {[%emt 0:00:14]} 68. gxf5 {[%emt 0:00:03]} gxf5 {[%emt 0:
00:04]} 69. Bf1 {[%emt 0:00:08]} Kg4 {[%emt 0:00:22]} 70. Be2+ {[%emt 0:00:55]}
Kf4 {[%emt 0:00:01]} 71. Bf1 {[%emt 0:00:04]} Bxh2 {[%emt 0:01:46]} 72. Bxh3 {
[%emt 0:01:42]} e3 {[%emt 0:00:08]} 73. Bf1 {[%emt 0:00:04]} Kf3 {[%emt 0:00:
05]} 74. Ke6 {[%emt 0:00:53]} f4 {[%emt 0:00:08]} 0-1

[Event "ETCC Women 2013"]
[Site "Warsaw"]
[Date "2013.11.14"]
[Round "6"]
[White "Manakova, Maria"]
[Black "Raeva, Elitsa"]
[Result "1-0"]
[ECO "A56"]
[WhiteElo "2324"]
[BlackElo "2361"]
[PlyCount "167"]
[EventDate "2013.??.??"]
[EventCountry "POL"]
[WhiteTeam "Serbia"]
[BlackTeam "Bulgaria"]
[WhiteTeamCountry "SRB"]
[BlackTeamCountry "BUL"]
[TimeControl "40/5400+30:1800+30"]

1. d4 {[%emt 0:00:00]} Nf6 {[%emt 0:00:00]} 2. c4 {[%emt 0:00:00]} c5 {[%emt 0:
00:00]} 3. d5 {[%emt 0:00:00]} g6 {[%emt 0:00:05]} 4. Nc3 {[%emt 0:00:01]} Bg7
{[%emt 0:00:07]} 5. e4 {[%emt 0:00:05]} d6 {[%emt 0:00:10]} 6. f3 {[%emt 0:00:
33]} O-O {[%emt 0:00:18]} 7. Bg5 {[%emt 0:00:52]} e6 {[%emt 0:03:25]} 8. Qd2 {
[%emt 0:01:13]} exd5 {[%emt 0:11:36]} 9. cxd5 {[%emt 0:00:28]} h6 {[%emt 0:02:
26]} 10. Be3 {[%emt 0:00:35]} a6 {[%emt 0:03:02]} 11. a4 {[%emt 0:00:11]} h5 {
[%emt 0:00:10]} 12. Nge2 {[%emt 0:02:09]} Nbd7 {[%emt 0:00:32]} 13. Nc1 {[%emt
0:00:56]} b6 {[%emt 0:05:27]} 14. Be2 {[%emt 0:01:22]} Re8 {[%emt 0:05:01]} 15.
O-O {[%emt 0:00:27]} Rb8 {[%emt 0:00:07]} 16. Rb1 {[%emt 0:03:06]} Qc7 {[%emt
0:08:14]} 17. b3 {[%emt 0:02:30]} Nf8 {[%emt 0:06:32]} 18. Nd3 {[%emt 0:07:01]}
b5 {[%emt 0:15:19]} 19. axb5 {[%emt 0:06:56]} axb5 {[%emt 0:00:12]} 20. Nxc5 {
[%emt 0:20:01]} dxc5 {[%emt 0:12:38]} 21. Bf4 {[%emt 0:00:54]} Qb6 {[%emt 0:03:
05]} 22. Bxb5 {[%emt 0:11:44]} Bd7 {[%emt 0:05:54]} 23. Bxd7 {[%emt 0:01:10]}
N6xd7 {[%emt 0:00:16]} 24. Bxb8 {[%emt 0:00:44]} Rxb8 {[%emt 0:00:21]} 25. Kh1
{[%emt 0:14:37]} Qb4 {[%emt 0:01:05]} 26. Rbc1 {[%emt 0:05:32]} Qxb3 {[%emt 0:
01:52]} 27. f4 {[%emt 0:00:37]} h4 {[%emt 0:02:58]} 28. e5 {[%emt 0:03:36]} h3
{[%emt 0:00:51]} 29. gxh3 {[%emt 0:05:52]} Rb4 {[%emt 0:01:03]} 30. h4 {[%emt
0:03:43]} Bh6 {[%emt 0:03:37]} 31. Qe3 {[%emt 0:02:19]} Qc4 {[%emt 0:01:21]}
32. Qf3 {[%emt 0:04:30]} Qxf4 {[%emt 0:01:42]} 33. Rce1 {[%emt 0:01:20]} Nxe5 {
[%emt 0:02:15]} 34. Qe2 {[%emt 0:00:10]} Qxh4 {[%emt 0:03:03]} 35. Qxe5 {[%emt
0:00:24]} Bg7 {[%emt 0:00:21]} 36. Qe8 {[%emt 0:00:54]} Rf4 {[%emt 0:00:37]}
37. Ne2 {[%emt 0:01:02]} Rf2 {[%emt 0:00:43]} 38. Rxf2 {[%emt 0:00:13]} Qxf2 {
[%emt 0:00:05]} 39. Ng1 {[%emt 0:00:38]} c4 {[%emt 0:01:46]} 40. Qe2 {[%emt 0:
00:00]} Qc5 {[%emt 0:00:00]} 41. Qe4 {[%emt 0:19:58]} c3 {[%emt 0:02:59]} 42.
Nf3 {[%emt 0:03:18]} Bf6 {[%emt 0:08:33]} 43. Re2 {[%emt 0:00:35]} Kg7 {[%emt
0:00:52]} 44. Ne5 {[%emt 0:03:43]} Qb5 {[%emt 0:04:55]} 45. Kg2 {[%emt 0:00:52]
} Qc5 {[%emt 0:04:28]} 46. Qc4 {[%emt 0:02:08]} Qa3 {[%emt 0:06:50]} 47. Qc7 {
[%emt 0:01:30]} Bxe5 {[%emt 0:01:53]} 48. Qxe5+ {[%emt 0:00:05]} Kg8 {[%emt 0:
00:26]} 49. Rc2 {[%emt 0:00:37]} Qb3 {[%emt 0:03:29]} 50. Rxc3 {[%emt 0:00:19]}
Qb2+ {[%emt 0:00:07]} 51. Kg3 {[%emt 0:00:59]} Qa1 {[%emt 0:00:06]} 52. Qe3 {
[%emt 0:00:38]} Qd1 {[%emt 0:00:54]} 53. Rd3 {[%emt 0:00:15]} Qh5 {[%emt 0:00:
36]} 54. d6 {[%emt 0:01:20]} g5 {[%emt 0:00:41]} 55. Qe4 {[%emt 0:01:41]} Nd7 {
[%emt 0:01:31]} 56. Qe8+ {[%emt 0:00:15]} Nf8 {[%emt 0:00:04]} 57. Rd4 {[%emt
0:00:41]} Qh8 {[%emt 0:00:44]} 58. Qe4 {[%emt 0:00:48]} Qf6 {[%emt 0:00:39]}
59. d7 {[%emt 0:00:24]} Qd8 {[%emt 0:00:35]} 60. Qe8 {[%emt 0:00:30]} Qc7+ {
[%emt 0:00:26]} 61. Kg4 {[%emt 0:00:20]} f5+ {[%emt 0:00:26]} 62. Kxf5 {[%emt
0:00:09]} Qc2+ {[%emt 0:00:23]} 63. Ke5 {[%emt 0:01:03]} Qxh2+ {[%emt 0:00:13]}
64. Kd5 {[%emt 0:00:19]} Qa2+ {[%emt 0:00:06]} 65. Rc4 {[%emt 0:00:31]} Qa5+ {
[%emt 0:00:44]} 66. Rc5 {[%emt 0:00:17]} Qa2+ {[%emt 0:00:23]} 67. Kd6 {[%emt
0:00:29]} Qa6+ {[%emt 0:00:36]} 68. Rc6 {[%emt 0:00:29]} Qa3+ {[%emt 0:00:25]}
69. Rc5 {[%emt 0:00:30]} Qa6+ {[%emt 0:00:08]} 70. Ke5 {[%emt 0:00:47]} Qe2+ {
[%emt 0:00:21]} 71. Kf6 {[%emt 0:00:28]} Qf2+ {[%emt 0:01:36]} 72. Rf5 {[%emt
0:00:23]} Qb2+ {[%emt 0:00:09]} 73. Kxg5 {[%emt 0:00:29]} Qg2+ {[%emt 0:00:12]}
74. Kf4 {[%emt 0:00:38]} Qf2+ {[%emt 0:00:32]} 75. Ke4 {[%emt 0:00:22]} Qe2+ {
[%emt 0:00:24]} 76. Kd4 {[%emt 0:00:47]} Qd2+ {[%emt 0:00:16]} 77. Ke5 {[%emt
0:00:38]} Qe3+ {[%emt 0:00:46]} 78. Kd6 {[%emt 0:00:12]} Qd4+ {[%emt 0:01:02]}
79. Kc6 {[%emt 0:00:26]} Qc4+ {[%emt 0:00:34]} 80. Kb6 {[%emt 0:00:32]} Qb4+ {
[%emt 0:00:55]} 81. Kc7 {[%emt 0:00:17]} Qc3+ {[%emt 0:00:30]} 82. Kd8 {[%emt
0:00:15]} Qg7 {[%emt 0:00:38]} 83. Qxf8+ {[%emt 0:00:10]} Qxf8+ {[%emt 0:00:07]
} 84. Rxf8+ 1-0

[Event "ETCC Women 2013"]
[Site "Warsaw"]
[Date "2013.11.14"]
[Round "6"]
[White "Matnadze, Ana"]
[Black "Galojan, Lilit"]
[Result "1/2-1/2"]
[ECO "D04"]
[WhiteElo "2373"]
[BlackElo "2301"]
[PlyCount "166"]
[EventDate "2013.??.??"]
[EventCountry "POL"]
[WhiteTeam "Spain"]
[BlackTeam "Armenia"]
[WhiteTeamCountry "ESP"]
[BlackTeamCountry "ARM"]
[TimeControl "40/5400+30:1800+30"]

1. d4 {[%emt 0:00:00]} d5 {[%emt 0:00:00]} 2. Nf3 {[%emt 0:00:00]} Nf6 {[%emt
0:00:02]} 3. e3 {[%emt 0:00:58]} c5 {[%emt 0:02:06]} 4. c4 {[%emt 0:01:27]}
dxc4 {[%emt 0:10:44]} 5. Nc3 {[%emt 0:00:50]} e6 {[%emt 0:00:42]} 6. Bxc4 {
[%emt 0:01:04]} a6 {[%emt 0:00:19]} 7. a4 {[%emt 0:02:29]} cxd4 {[%emt 0:00:57]
} 8. exd4 {[%emt 0:03:21]} Nc6 {[%emt 0:00:54]} 9. O-O {[%emt 0:00:49]} Be7 {
[%emt 0:00:44]} 10. h3 {[%emt 0:06:07]} O-O {[%emt 0:02:33]} 11. Bf4 {[%emt 0:
03:10]} Nb4 {[%emt 0:04:35]} 12. Qb3 {[%emt 0:05:02]} b6 {[%emt 0:14:03]} 13.
Rfd1 {[%emt 0:09:44]} Bb7 {[%emt 0:02:11]} 14. Ne5 {[%emt 0:00:58]} Nfd5 {
[%emt 0:04:18]} 15. Bg3 {[%emt 0:02:11]} Rc8 {[%emt 0:04:59]} 16. Nxd5 {[%emt
0:02:06]} Bxd5 {[%emt 0:14:21]} 17. Bxd5 {[%emt 0:02:42]} Qxd5 {[%emt 0:00:46]}
18. Qxd5 {[%emt 0:07:51]} Nxd5 {[%emt 0:04:52]} 19. a5 {[%emt 0:08:52]} b5 {
[%emt 0:10:47]} 20. Nd7 {[%emt 0:02:34]} Rfd8 {[%emt 0:03:24]} 21. Nb6 {[%emt
0:00:11]} Rc2 {[%emt 0:00:11]} 22. Rdc1 {[%emt 0:01:19]} Nb4 {[%emt 0:03:49]}
23. d5 {[%emt 0:09:00]} Rxc1+ {[%emt 0:06:26]} 24. Rxc1 {[%emt 0:00:01]} Nxd5 {
[%emt 0:00:08]} 25. Kf1 {[%emt 0:13:17]} Bb4 {[%emt 0:00:46]} 26. Nxd5 {[%emt
0:01:20]} exd5 {[%emt 0:00:22]} 27. Ke2 {[%emt 0:00:26]} h6 {[%emt 0:04:44]}
28. Kd3 {[%emt 0:03:03]} Re8 {[%emt 0:01:05]} 29. f3 {[%emt 0:11:40]} Bxa5 {
[%emt 0:00:46]} 30. Ra1 {[%emt 0:00:02]} Bb6 {[%emt 0:02:34]} 31. Rxa6 {[%emt
0:00:02]} Bg1 {[%emt 0:00:48]} 32. Ra5 {[%emt 0:01:38]} Re3+ {[%emt 0:00:14]}
33. Kd2 {[%emt 0:00:15]} Rb3 {[%emt 0:00:17]} 34. Be5 {[%emt 0:01:08]} d4 {
[%emt 0:00:27]} 35. Kc2 {[%emt 0:00:31]} Rb4 {[%emt 0:00:55]} 36. Ra1 {[%emt 0:
01:17]} Rc4+ {[%emt 0:00:23]} 37. Kd3 {[%emt 0:00:04]} Be3 {[%emt 0:00:20]} 38.
Ra5 {[%emt 0:00:16]} Rb4 {[%emt 0:00:32]} 39. Kc2 {[%emt 0:00:28]} Rc4+ {[%emt
0:00:06]} 40. Kd3 {[%emt 0:00:00]} Rb4 {[%emt 0:00:00]} 41. Kc2 {[%emt 0:01:27]
} f6 {[%emt 0:07:29]} 42. Bd6 {[%emt 0:00:37]} Rc4+ {[%emt 0:00:14]} 43. Kd3 {
[%emt 0:00:17]} Rc1 {[%emt 0:06:57]} 44. Rxb5 {[%emt 0:00:44]} Rd1+ {[%emt 0:
02:53]} 45. Ke4 {[%emt 0:00:21]} Kf7 {[%emt 0:00:10]} 46. Bc5 {[%emt 0:03:16]}
Kg6 {[%emt 0:07:18]} 47. g4 {[%emt 0:03:00]} Bg1 {[%emt 0:00:52]} 48. Bb4 {
[%emt 0:03:13]} Rb1 {[%emt 0:01:29]} 49. Bd2 {[%emt 0:00:35]} Rd1 {[%emt 0:00:
08]} 50. Ba5 {[%emt 0:01:34]} Be3 {[%emt 0:04:29]} 51. h4 {[%emt 0:00:53]} h5 {
[%emt 0:03:02]} 52. Rxh5 {[%emt 0:02:15]} Bc1 {[%emt 0:01:03]} 53. Rb5 {[%emt
0:05:56]} d3 {[%emt 0:00:06]} 54. h5+ {[%emt 0:00:05]} Kh6 {[%emt 0:00:42]} 55.
Bc7 {[%emt 0:07:20]} Rf1 {[%emt 0:01:20]} 56. Rd5 {[%emt 0:02:28]} Re1+ {[%emt
0:00:55]} 57. Kxd3 {[%emt 0:00:23]} Rd1+ {[%emt 0:00:30]} 58. Ke4 {[%emt 0:00:
11]} Rxd5 {[%emt 0:00:23]} 59. Kxd5 {[%emt 0:00:06]} Bxb2 {[%emt 0:00:01]} 60.
Bf4+ {[%emt 0:00:35]} Kh7 {[%emt 0:00:42]} 61. Ke6 {[%emt 0:00:34]} Kg8 {[%emt
0:01:02]} 62. Bd6 {[%emt 0:00:43]} Bc1 {[%emt 0:00:20]} 63. Be7 {[%emt 0:00:20]
} Bd2 {[%emt 0:00:12]} 64. Bd6 {[%emt 0:02:28]} Bc3 {[%emt 0:00:35]} 65. f4 {
[%emt 0:00:35]} Bb2 {[%emt 0:00:23]} 66. Bc7 {[%emt 0:00:40]} Bc3 {[%emt 0:00:
13]} 67. Bd8 {[%emt 0:00:05]} Bb2 {[%emt 0:01:07]} 68. h6 {[%emt 0:00:24]} Bc3
{[%emt 0:00:36]} 69. Kf5 {[%emt 0:02:27]} Kh7 {[%emt 0:00:18]} 70. hxg7 {[%emt
0:00:31]} Kxg7 {[%emt 0:00:01]} 71. Ke6 {[%emt 0:00:11]} Bb2 {[%emt 0:00:18]}
72. Bb6 {[%emt 0:00:15]} Bc3 {[%emt 0:00:35]} 73. Kd5 {[%emt 0:00:11]} Kg6 {
[%emt 0:00:18]} 74. Bd4 {[%emt 0:00:13]} Bd2 {[%emt 0:00:14]} 75. f5+ {[%emt 0:
01:45]} Kf7 {[%emt 0:00:28]} 76. Ke4 {[%emt 0:00:16]} Bc1 {[%emt 0:00:16]} 77.
Be3 {[%emt 0:00:04]} Bb2 {[%emt 0:00:10]} 78. Kf3 {[%emt 0:00:06]} Bc3 {[%emt
0:00:08]} 79. Kg3 {[%emt 0:00:21]} Be5+ {[%emt 0:00:14]} 80. Kh4 {[%emt 0:00:
06]} Bd6 {[%emt 0:00:06]} 81. Kh5 {[%emt 0:00:05]} Bf8 {[%emt 0:00:16]} 82. Bd4
{[%emt 0:00:07]} Be7 {[%emt 0:00:29]} 83. Be3 {[%emt 0:00:32]} Bf8 {[%emt 0:00:
30]} 1/2-1/2

[Event "ETCC Women 2013"]
[Site "Warsaw"]
[Date "2013.11.14"]
[Round "6"]
[White "Melamed, Tatjana"]
[Black "Bartel, Marta"]
[Result "1/2-1/2"]
[ECO "B51"]
[WhiteElo "2367"]
[BlackElo "2308"]
[PlyCount "96"]
[EventDate "2013.??.??"]
[EventCountry "POL"]
[WhiteTeam "Germany"]
[BlackTeam "Poland"]
[WhiteTeamCountry "GER"]
[BlackTeamCountry "POL"]
[TimeControl "40/5400+30:1800+30"]

1. e4 {[%emt 0:00:00]} c5 {[%emt 0:00:00]} 2. Nf3 {[%emt 0:00:00]} d6 {[%emt 0:
00:00]} 3. Bb5+ {[%emt 0:00:26]} Nd7 {[%emt 0:00:00]} 4. O-O {[%emt 0:02:58]}
a6 {[%emt 0:00:16]} 5. Bxd7+ {[%emt 0:01:00]} Bxd7 {[%emt 0:00:15]} 6. d4 {
[%emt 0:01:14]} cxd4 {[%emt 0:00:25]} 7. Qxd4 {[%emt 0:00:21]} e5 {[%emt 0:00:
33]} 8. Qb4 {[%emt 0:06:39]} Qc7 {[%emt 0:08:33]} 9. Nc3 {[%emt 0:06:25]} Nf6 {
[%emt 0:00:42]} 10. Bg5 {[%emt 0:10:07]} a5 {[%emt 0:26:50]} 11. Qa3 {[%emt 0:
08:43]} d5 {[%emt 0:10:22]} 12. Qb3 {[%emt 0:03:21]} dxe4 {[%emt 0:03:46]} 13.
Bxf6 {[%emt 0:18:15]} gxf6 {[%emt 0:00:36]} 14. Nxe4 {[%emt 0:01:16]} Be7 {
[%emt 0:00:46]} 15. Nc3 {[%emt 0:02:41]} Qc6 {[%emt 0:12:32]} 16. Nd5 {[%emt 0:
03:13]} Bc5 {[%emt 0:01:15]} 17. Nd2 {[%emt 0:06:57]} O-O-O {[%emt 0:05:38]}
18. Ne4 {[%emt 0:02:50]} Be6 {[%emt 0:02:00]} 19. c4 {[%emt 0:03:04]} f5 {
[%emt 0:06:56]} 20. Nxc5 {[%emt 0:02:32]} Qxc5 {[%emt 0:00:01]} 21. Rfe1 {
[%emt 0:02:08]} e4 {[%emt 0:04:42]} 22. Rad1 {[%emt 0:02:43]} Rhg8 {[%emt 0:00:
57]} 23. Qe3 {[%emt 0:03:40]} Qxe3 {[%emt 0:02:20]} 24. fxe3 {[%emt 0:00:36]}
Kb8 {[%emt 0:08:44]} 25. Rf1 {[%emt 0:01:00]} Rd6 {[%emt 0:01:53]} 26. Rd4 {
[%emt 0:07:15]} Rgd8 {[%emt 0:00:45]} 27. Rfd1 {[%emt 0:00:21]} Bxd5 {[%emt 0:
00:43]} 28. cxd5 {[%emt 0:00:24]} Kc7 {[%emt 0:00:12]} 29. Kf2 {[%emt 0:00:39]}
Rb6 {[%emt 0:00:30]} 30. b3 {[%emt 0:00:55]} Kd6 {[%emt 0:00:14]} 31. Rc1 {
[%emt 0:01:09]} Rd7 {[%emt 0:00:37]} 32. Rc8 {[%emt 0:00:15]} Rb5 {[%emt 0:00:
37]} 33. Rh8 {[%emt 0:00:41]} Rxd5 {[%emt 0:01:37]} 34. Rxd5+ {[%emt 0:00:33]}
Kxd5 {[%emt 0:00:01]} 35. Rxh7 {[%emt 0:00:08]} Ke5 {[%emt 0:00:59]} 36. Ke2 {
[%emt 0:01:15]} Rc7 {[%emt 0:00:20]} 37. Kd2 {[%emt 0:00:40]} f4 {[%emt 0:00:
42]} 38. exf4+ {[%emt 0:01:14]} Kxf4 {[%emt 0:00:05]} 39. Rh4+ {[%emt 0:00:09]}
Ke5 {[%emt 0:00:10]} 40. Rh5+ {[%emt 0:00:00]} f5 {[%emt 0:00:00]} 41. g4 {
[%emt 0:06:22]} Kd4 {[%emt 0:08:57]} 42. Rxf5 {[%emt 0:02:02]} Rh7 {[%emt 0:04:
42]} 43. Rh5 {[%emt 0:03:15]} Rf7 {[%emt 0:00:51]} 44. Rf5 {[%emt 0:08:50]} Rh7
{[%emt 0:00:05]} 45. Rh5 {[%emt 0:04:26]} Rf7 {[%emt 0:00:08]} 46. Ke2 {[%emt
0:01:06]} Rc7 {[%emt 0:02:00]} 47. Kd2 {[%emt 0:00:34]} Rf7 {[%emt 0:00:37]}
48. Ke2 {[%emt 0:00:52]} Rc7 {[%emt 0:00:11]} 1/2-1/2

[Event "ETCC Women 2013"]
[Site "Warsaw"]
[Date "2013.11.14"]
[Round "6"]
[White "Mkrtchian, Lilit"]
[Black "Vega Gutierrez, Sabrina"]
[Result "1-0"]
[ECO "A15"]
[WhiteElo "2447"]
[BlackElo "2385"]
[PlyCount "81"]
[EventDate "2013.??.??"]
[EventCountry "POL"]
[WhiteTeam "Armenia"]
[BlackTeam "Spain"]
[WhiteTeamCountry "ARM"]
[BlackTeamCountry "ESP"]
[TimeControl "40/5400+30:1800+30"]

1. c4 Nf6 2. Nf3 g6 3. Nc3 Bg7 4. e4 d6 5. d4 O-O 6. h3 e5 7. d5 a5 8. Bg5 Na6
9. Be2 Qe8 10. g4 Kh8 11. Nd2 Ng8 12. h4 f6 13. Be3 f5 14. f3 Nf6 15. Nf1 f4
16. Bf2 Rf7 17. Nd2 Bd7 18. Kf1 Nc5 19. b3 Bf8 20. a3 Qc8 21. b4 axb4 22. axb4
Rxa1 23. Qxa1 Na6 24. Na2 h5 25. g5 Ng4 26. fxg4 hxg4 27. Qc3 c5 28. b5 Nc7 29.
Nc1 Ne8 30. Nd3 b6 31. h5 gxh5 32. g6 Rg7 33. Nxe5 Kg8 34. Nxd7 Qxd7 35. Rxh5
Be7 36. e5 dxe5 37. Qxe5 Nf6 38. Rh6 g3 39. Be1 Qd6 40. Qf5 Bf8 41. Qh3 1-0